[Event "Titled Tuesday Blitz March 07 Early 2023"]
[White "Kuchava, Ana"]
[Black "Carrasco Miranda, Andres"]
[WhiteFideId "13605348"]
[BlackFideId "3405990"]
[WhiteElo "2001"]
[BlackElo "2183"]
[Result "1-0"]
[Round "05"]
[TimeControl "180+2"]
[Date "2023.03.07"]
[WhiteClock "0:01:12"]
[BlackClock "0:01:20"]

1. d4 {[%clk 0:03:00]}  Nf6 {[%clk 0:02:29]} 2. Nf3 {[%clk 0:02:57]}  g6 {[%clk 0:02:29]} 3. c4 {[%clk 0:02:50]}  Bg7 {[%clk 0:02:30]} 4. Nc3 {[%clk 0:02:50]}  d5 {[%clk 0:02:30]} 5. Bg5 {[%clk 0:02:47]}  Ne4 {[%clk 0:02:29]} 6. Bf4 {[%clk 0:02:45]}  Nxc3 {[%clk 0:02:29]} 7. bxc3 {[%clk 0:02:44]}  dxc4 {[%clk 0:02:30]} 8. e3 {[%clk 0:02:44]}  b5 {[%clk 0:02:31]} 9. Qb1 {[%clk 0:02:23]}  c6 {[%clk 0:02:30]} 10. a4 {[%clk 0:02:21]}  a6 {[%clk 0:02:27]} 11. axb5 {[%clk 0:02:16]}  O-O {[%clk 0:02:17]} 12. bxc6 {[%clk 0:02:09]}  Nxc6 {[%clk 0:02:10]} 13. Bxc4 {[%clk 0:02:10]}  Bg4 {[%clk 0:01:57]} 14. Be2 {[%clk 0:01:44]}  Qc8 {[%clk 0:01:37]} 15. O-O {[%clk 0:01:41]}  e6 {[%clk 0:01:37]} 16. h3 {[%clk 0:01:40]}  Bh5 {[%clk 0:01:34]} 17. g4 {[%clk 0:01:39]}  Bxg4 {[%clk 0:01:34]} 18. hxg4 {[%clk 0:01:39]}  e5 {[%clk 0:01:32]} 19. Nxe5 {[%clk 0:01:31]}  Nxe5 {[%clk 0:01:30]} 20. Bxe5 {[%clk 0:01:30]}  Bxe5 {[%clk 0:01:27]} 21. dxe5 {[%clk 0:01:31]}  f6 {[%clk 0:01:27]} 22. Qb3+ {[%clk 0:01:26]}  Kg7 {[%clk 0:01:26]} 23. e6 {[%clk 0:01:25]}  Rb8 {[%clk 0:01:23]} 24. Qc4 {[%clk 0:01:24]}  Qd8 {[%clk 0:01:20]} 25. Rfd1 {[%clk 0:01:19]}  Qe8 {[%clk 0:01:20]} 26. Rd7+ {[%clk 0:01:14]}  Kh8 {[%clk 0:01:20]} 27. Qc7 {[%clk 0:01:12]} 1-0


[Site "https://www.chess.com"]

[Event "Titled Tuesday Blitz March 07 Early 2023"]
[White "Tsyhanchuk, Stanislav"]
[Black "Winkels, Marcel"]
[WhiteFideId "13505130"]
[BlackFideId "1003887"]
[WhiteElo "2173"]
[BlackElo "1900"]
[Result "1-0"]
[Round "05"]
[TimeControl "180+2"]
[Date "2023.03.07"]
[WhiteClock "0:00:10"]
[BlackClock "0:00:01"]

1. c4 {[%clk 0:03:00]}  f5 {[%clk 0:02:58]} 2. Nc3 {[%clk 0:02:59]}  Nf6 {[%clk 0:02:59]} 3. d4 {[%clk 0:03:00]}  g6 {[%clk 0:02:58]} 4. g3 {[%clk 0:03:00]}  Bg7 {[%clk 0:02:58]} 5. Bg2 {[%clk 0:03:00]}  O-O {[%clk 0:02:58]} 6. e3 {[%clk 0:02:53]}  d6 {[%clk 0:02:58]} 7. Nge2 {[%clk 0:02:49]}  e5 {[%clk 0:02:57]} 8. dxe5 {[%clk 0:02:45]}  dxe5 {[%clk 0:02:56]} 9. Qb3 {[%clk 0:02:46]}  c6 {[%clk 0:02:47]} 10. O-O {[%clk 0:02:45]}  Na6 {[%clk 0:02:47]} 11. Rd1 {[%clk 0:02:38]}  Qe7 {[%clk 0:02:40]} 12. Bd2 {[%clk 0:02:34]}  Be6 {[%clk 0:02:38]} 13. Rac1 {[%clk 0:01:37]}  Nc5 {[%clk 0:02:31]} 14. Qa3 {[%clk 0:01:31]}  Bxc4 {[%clk 0:02:12]} 15. Bf1 {[%clk 0:01:30]}  Be6 {[%clk 0:01:46]} 16. Na4 {[%clk 0:01:26]}  Nfd7 {[%clk 0:01:40]} 17. Bb4 {[%clk 0:01:13]}  b6 {[%clk 0:01:39]} 18. b3 {[%clk 0:01:09]}  Rad8 {[%clk 0:01:27]} 19. Bg2 {[%clk 0:01:05]}  e4 {[%clk 0:01:20]} 20. Nd4 {[%clk 0:00:55]}  Bd5 {[%clk 0:01:15]} 21. Nxc5 {[%clk 0:00:51]}  bxc5 {[%clk 0:01:10]} 22. Bxc5 {[%clk 0:00:51]}  Nxc5 {[%clk 0:01:09]} 23. Qxc5 {[%clk 0:00:52]}  Qxc5 {[%clk 0:00:55]} 24. Rxc5 {[%clk 0:00:53]}  Bxd4 {[%clk 0:00:40]} 25. Rxd4 {[%clk 0:00:50]}  Ra8 {[%clk 0:00:31]} 26. h4 {[%clk 0:00:48]}  a5 {[%clk 0:00:29]} 27. Ra4 {[%clk 0:00:41]}  Rfb8 {[%clk 0:00:19]} 28. Rcxa5 {[%clk 0:00:39]}  Rxa5 {[%clk 0:00:18]} 29. Rxa5 {[%clk 0:00:40]}  Kf7 {[%clk 0:00:18]} 30. Bf1 {[%clk 0:00:39]}  Ke6 {[%clk 0:00:18]} 31. Ra7 {[%clk 0:00:35]}  h5 {[%clk 0:00:17]} 32. Rg7 {[%clk 0:00:35]}  Kf6 {[%clk 0:00:17]} 33. Rc7 {[%clk 0:00:28]}  Ra8 {[%clk 0:00:15]} 34. a4 {[%clk 0:00:18]}  Rb8 {[%clk 0:00:14]} 35. Bc4 {[%clk 0:00:17]}  Ke5 {[%clk 0:00:09]} 36. a5 {[%clk 0:00:11]}  Kd6 {[%clk 0:00:08]} 37. Rg7 {[%clk 0:00:10]}  Ra8 {[%clk 0:00:07]} 38. Rxg6+ {[%clk 0:00:10]}  Kc5 {[%clk 0:00:06]} 39. Bxd5 {[%clk 0:00:10]}  cxd5 {[%clk 0:00:06]} 40. a6 {[%clk 0:00:10]}  Kb4 {[%clk 0:00:05]} 41. Rb6+ {[%clk 0:00:10]}  Kc5 {[%clk 0:00:05]} 42. Rf6 {[%clk 0:00:10]}  d4 {[%clk 0:00:04]} 43. Rxf5+ {[%clk 0:00:09]}  Kb4 {[%clk 0:00:02]} 44. exd4 {[%clk 0:00:10]}  Rxa6 {[%clk 0:00:01]} 45. Rxh5 {[%clk 0:00:10]} 1-0


[Site "https://www.chess.com"]

[Event "Titled Tuesday Blitz March 07 Early 2023"]
[White "Latreche, Khadidja"]
[Black "SicilianPanzer"]
[WhiteFideId "7901780"]
[WhiteElo "1869"]
[BlackElo "2240"]
[Result "0-1"]
[Round "05"]
[TimeControl "180+2"]
[Date "2023.03.07"]
[WhiteClock "0:01:08"]
[BlackClock "0:00:48"]

1. e4 {[%clk 0:03:00]}  c6 {[%clk 0:02:54]} 2. d4 {[%clk 0:03:00]}  d5 {[%clk 0:02:53]} 3. e5 {[%clk 0:03:00]}  Bf5 {[%clk 0:02:53]} 4. h4 {[%clk 0:02:57]}  a6 {[%clk 0:02:52]} 5. c4 {[%clk 0:02:53]}  dxc4 {[%clk 0:02:49]} 6. Bxc4 {[%clk 0:02:50]}  e6 {[%clk 0:02:47]} 7. Nc3 {[%clk 0:02:44]}  h5 {[%clk 0:02:40]} 8. Nf3 {[%clk 0:02:41]}  c5 {[%clk 0:02:31]} 9. Be3 {[%clk 0:02:34]}  b5 {[%clk 0:02:22]} 10. Be2 {[%clk 0:02:10]}  c4 {[%clk 0:02:12]} 11. a3 {[%clk 0:02:08]}  Ne7 {[%clk 0:02:06]} 12. O-O {[%clk 0:02:07]}  Nbc6 {[%clk 0:01:58]} 13. Ng5 {[%clk 0:02:06]}  Bg6 {[%clk 0:01:47]} 14. Bf3 {[%clk 0:02:03]}  Rc8 {[%clk 0:01:42]} 15. Rc1 {[%clk 0:02:02]}  Nf5 {[%clk 0:01:37]} 16. Bxc6+ {[%clk 0:01:53]}  Rxc6 {[%clk 0:01:36]} 17. d5 {[%clk 0:01:46]}  exd5 {[%clk 0:01:35]} 18. Nxd5 {[%clk 0:01:45]}  Bc5 {[%clk 0:01:19]} 19. Bf4 {[%clk 0:01:36]}  O-O {[%clk 0:00:58]} 20. Qf3 {[%clk 0:01:35]}  Nd4 {[%clk 0:00:51]} 21. Qc3 {[%clk 0:01:08]}  Ne2+ {[%clk 0:00:48]} 0-1


[Site "https://www.chess.com"]

[Event "Titled Tuesday Blitz March 07 Early 2023"]
[White "Fedoseev, Vladimir"]
[Black "Nakamura, Hikaru"]
[WhiteFideId "24130737"]
[BlackFideId "2016192"]
[WhiteElo "2752"]
[BlackElo "2879"]
[Result "1-0"]
[Round "06"]
[TimeControl "180+2"]
[Date "2023.03.07"]
[WhiteClock "0:00:06"]
[BlackClock "0:00:02"]

1. e4 {[%clk 0:03:00]}  e5 {[%clk 0:02:57]} 2. Nf3 {[%clk 0:03:01]}  Nc6 {[%clk 0:02:58]} 3. Bb5 {[%clk 0:03:01]}  a6 {[%clk 0:02:50]} 4. Ba4 {[%clk 0:03:00]}  d6 {[%clk 0:02:51]} 5. c3 {[%clk 0:02:54]}  Bd7 {[%clk 0:02:49]} 6. O-O {[%clk 0:02:53]}  g6 {[%clk 0:02:49]} 7. d4 {[%clk 0:02:51]}  Bg7 {[%clk 0:02:49]} 8. Bg5 {[%clk 0:02:50]}  f6 {[%clk 0:02:46]} 9. Be3 {[%clk 0:02:49]}  Nh6 {[%clk 0:02:46]} 10. h3 {[%clk 0:02:37]}  O-O {[%clk 0:02:38]} 11. dxe5 {[%clk 0:02:36]}  dxe5 {[%clk 0:02:21]} 12. Qd5+ {[%clk 0:02:34]}  Nf7 {[%clk 0:02:16]} 13. Rd1 {[%clk 0:02:34]}  Bc8 {[%clk 0:02:07]} 14. Bc5 {[%clk 0:02:26]}  Re8 {[%clk 0:02:06]} 15. Qb3 {[%clk 0:01:59]}  Bd7 {[%clk 0:02:00]} 16. Qxb7 {[%clk 0:01:56]}  Rb8 {[%clk 0:01:51]} 17. Qxa6 {[%clk 0:01:49]}  Ra8 {[%clk 0:01:51]} 18. Qb5 {[%clk 0:01:37]}  Rxa4 {[%clk 0:01:09]} 19. Qxa4 {[%clk 0:01:35]}  Nd4 {[%clk 0:01:09]} 20. Rxd4 {[%clk 0:01:09]}  exd4 {[%clk 0:01:08]} 21. Qc4 {[%clk 0:01:03]}  Qb8 {[%clk 0:00:39]} 22. cxd4 {[%clk 0:00:48]}  Qxb2 {[%clk 0:00:37]} 23. Qc3 {[%clk 0:00:49]}  Qe2 {[%clk 0:00:33]} 24. Nbd2 {[%clk 0:00:47]}  Qa6 {[%clk 0:00:34]} 25. a4 {[%clk 0:00:44]}  h5 {[%clk 0:00:32]} 26. a5 {[%clk 0:00:44]}  g5 {[%clk 0:00:32]} 27. Ne1 {[%clk 0:00:36]}  g4 {[%clk 0:00:27]} 28. hxg4 {[%clk 0:00:35]}  hxg4 {[%clk 0:00:27]} 29. Nd3 {[%clk 0:00:34]}  g3 {[%clk 0:00:28]} 30. fxg3 {[%clk 0:00:31]}  Bh6 {[%clk 0:00:28]} 31. Nf4 {[%clk 0:00:28]}  Ng5 {[%clk 0:00:27]} 32. Re1 {[%clk 0:00:21]}  Kg7 {[%clk 0:00:27]} 33. d5 {[%clk 0:00:18]}  Nf7 {[%clk 0:00:26]} 34. Bd4 {[%clk 0:00:18]}  Ne5 {[%clk 0:00:26]} 35. Nf3 {[%clk 0:00:18]}  Ng4 {[%clk 0:00:26]} 36. Qxc7 {[%clk 0:00:15]}  Re7 {[%clk 0:00:25]} 37. Ne6+ {[%clk 0:00:12]}  Kf7 {[%clk 0:00:23]} 38. Nd8+ {[%clk 0:00:12]}  Ke8 {[%clk 0:00:22]} 39. Nc6 {[%clk 0:00:11]}  Bxc6 {[%clk 0:00:23]} 40. Qxc6+ {[%clk 0:00:11]}  Qxc6 {[%clk 0:00:23]} 41. dxc6 {[%clk 0:00:12]}  Re6 {[%clk 0:00:23]} 42. a6 {[%clk 0:00:12]}  Rxc6 {[%clk 0:00:23]} 43. a7 {[%clk 0:00:13]}  Ra6 {[%clk 0:00:24]} 44. e5 {[%clk 0:00:12]}  f5 {[%clk 0:00:21]} 45. Nh4 {[%clk 0:00:10]}  Bd2 {[%clk 0:00:16]} 46. Re2 {[%clk 0:00:07]}  Bb4 {[%clk 0:00:10]} 47. Nxf5 {[%clk 0:00:07]}  Bc5 {[%clk 0:00:11]} 48. Re1 {[%clk 0:00:05]}  Bxa7 {[%clk 0:00:10]} 49. Bxa7 {[%clk 0:00:05]}  Rxa7 {[%clk 0:00:11]} 50. e6 {[%clk 0:00:06]}  Ra5 {[%clk 0:00:11]} 51. Nd6+ {[%clk 0:00:05]}  Ke7 {[%clk 0:00:11]} 52. Nc8+ {[%clk 0:00:06]}  Ke8 {[%clk 0:00:11]} 53. Nd6+ {[%clk 0:00:06]}  Ke7 {[%clk 0:00:11]} 54. Nc8+ {[%clk 0:00:07]}  Ke8 {[%clk 0:00:12]} 55. e7 {[%clk 0:00:07]}  Rd5 {[%clk 0:00:12]} 56. Kf1 {[%clk 0:00:07]}  Rd2 {[%clk 0:00:10]} 57. Re6 {[%clk 0:00:07]}  Nf6 {[%clk 0:00:02]} 58. Rxf6 {[%clk 0:00:06]} 1-0


[Site "https://www.chess.com"]

[Event "Titled Tuesday Blitz March 07 Early 2023"]
[White "Talibov, Shiroghlan"]
[Black "Nihal Sarin"]
[WhiteFideId "13429078"]
[BlackFideId "25092340"]
[WhiteElo "2218"]
[BlackElo "2689"]
[Result "0-1"]
[Round "06"]
[TimeControl "180+2"]
[Date "2023.03.07"]
[WhiteClock "0:00:03"]
[BlackClock "0:00:13"]

1. e4 {[%clk 0:02:55]}  c5 {[%clk 0:02:54]} 2. Nf3 {[%clk 0:02:55]}  Nc6 {[%clk 0:02:54]} 3. d4 {[%clk 0:02:52]}  cxd4 {[%clk 0:02:55]} 4. Nxd4 {[%clk 0:02:53]}  e6 {[%clk 0:02:56]} 5. Nc3 {[%clk 0:02:49]}  a6 {[%clk 0:02:54]} 6. f4 {[%clk 0:02:47]}  Nge7 {[%clk 0:02:49]} 7. Be3 {[%clk 0:02:35]}  b5 {[%clk 0:02:49]} 8. a3 {[%clk 0:02:33]}  Bb7 {[%clk 0:02:49]} 9. Be2 {[%clk 0:02:33]}  Nxd4 {[%clk 0:02:28]} 10. Qxd4 {[%clk 0:02:25]}  Nc6 {[%clk 0:02:29]} 11. Qd2 {[%clk 0:02:19]}  Be7 {[%clk 0:02:28]} 12. O-O {[%clk 0:02:18]}  O-O {[%clk 0:02:28]} 13. Bf3 {[%clk 0:02:17]}  d6 {[%clk 0:02:23]} 14. Kh1 {[%clk 0:02:15]}  Rc8 {[%clk 0:02:24]} 15. Qf2 {[%clk 0:02:00]}  Bh4 {[%clk 0:02:10]} 16. g3 {[%clk 0:01:58]}  Bf6 {[%clk 0:02:09]} 17. Rad1 {[%clk 0:01:58]}  Bxc3 {[%clk 0:02:08]} 18. bxc3 {[%clk 0:01:59]}  Qe7 {[%clk 0:02:08]} 19. e5 {[%clk 0:01:49]}  Na5 {[%clk 0:01:25]} 20. exd6 {[%clk 0:01:35]}  Qd7 {[%clk 0:01:25]} 21. Bxb7 {[%clk 0:01:26]}  Nxb7 {[%clk 0:01:21]} 22. f5 {[%clk 0:01:10]}  Nxd6 {[%clk 0:01:15]} 23. f6 {[%clk 0:00:58]}  Qc6+ {[%clk 0:01:11]} 24. Kg1 {[%clk 0:00:38]}  Ne4 {[%clk 0:01:11]} 25. Qe2 {[%clk 0:00:27]}  Nxf6 {[%clk 0:00:47]} 26. Bd4 {[%clk 0:00:25]}  Nd5 {[%clk 0:00:41]} 27. Rde1 {[%clk 0:00:26]}  Rce8 {[%clk 0:00:36]} 28. Qd3 {[%clk 0:00:19]}  f6 {[%clk 0:00:34]} 29. c4 {[%clk 0:00:14]}  Qxc4 {[%clk 0:00:31]} 30. Qd2 {[%clk 0:00:15]}  e5 {[%clk 0:00:29]} 31. Bb2 {[%clk 0:00:15]}  Rc8 {[%clk 0:00:25]} 32. Rf2 {[%clk 0:00:16]}  Rfd8 {[%clk 0:00:25]} 33. Rd1 {[%clk 0:00:14]}  h6 {[%clk 0:00:24]} 34. h4 {[%clk 0:00:13]}  Rd7 {[%clk 0:00:21]} 35. Qe1 {[%clk 0:00:10]}  Rcd8 {[%clk 0:00:19]} 36. Kh1 {[%clk 0:00:06]}  Qc6 {[%clk 0:00:15]} 37. Kh2 {[%clk 0:00:05]}  Ne3 {[%clk 0:00:12]} 38. Rxd7 {[%clk 0:00:05]}  Ng4+ {[%clk 0:00:13]} 39. Kg1 {[%clk 0:00:06]}  Rxd7 {[%clk 0:00:13]} 40. Re2 {[%clk 0:00:07]}  Qf3 {[%clk 0:00:13]} 41. Rh2 {[%clk 0:00:03]}  Nxh2 {[%clk 0:00:13]} 0-1


[Site "https://www.chess.com"]

[Event "Titled Tuesday Blitz March 07 Early 2023"]
[White "Hakobyan, Aram"]
[Black "Rustemov, Alexander"]
[WhiteFideId "13306677"]
[BlackFideId "4119002"]
[WhiteElo "2563"]
[BlackElo "2900"]
[Result "1-0"]
[Round "06"]
[TimeControl "180+2"]
[Date "2023.03.07"]
[WhiteClock "0:01:46"]
[BlackClock "0:00:01"]

1. d4 {[%clk 0:03:00]}  d5 {[%clk 0:02:58]} 2. Nf3 {[%clk 0:02:57]}  Nf6 {[%clk 0:02:58]} 3. c3 {[%clk 0:02:58]}  Bf5 {[%clk 0:02:55]} 4. Qb3 {[%clk 0:02:57]}  b6 {[%clk 0:02:55]} 5. c4 {[%clk 0:02:57]}  e6 {[%clk 0:02:53]} 6. cxd5 {[%clk 0:02:57]}  exd5 {[%clk 0:02:52]} 7. Nc3 {[%clk 0:02:56]}  c6 {[%clk 0:02:51]} 8. Bg5 {[%clk 0:02:56]}  Be7 {[%clk 0:02:49]} 9. e3 {[%clk 0:02:56]}  O-O {[%clk 0:02:48]} 10. Be2 {[%clk 0:02:55]}  Nbd7 {[%clk 0:02:46]} 11. O-O {[%clk 0:02:55]}  h6 {[%clk 0:02:42]} 12. Bh4 {[%clk 0:02:53]}  Rc8 {[%clk 0:02:33]} 13. Ba6 {[%clk 0:02:53]}  Rc7 {[%clk 0:01:56]} 14. Bg3 {[%clk 0:02:52]}  Nb8 {[%clk 0:01:43]} 15. Bxc7 {[%clk 0:02:49]}  Qxc7 {[%clk 0:01:43]} 16. Be2 {[%clk 0:02:49]}  Qb7 {[%clk 0:01:41]} 17. Ne5 {[%clk 0:02:47]}  Nbd7 {[%clk 0:01:30]} 18. Nxd7 {[%clk 0:02:46]}  Bxd7 {[%clk 0:01:28]} 19. Rac1 {[%clk 0:02:45]}  Rd8 {[%clk 0:01:16]} 20. Bd3 {[%clk 0:02:44]}  Be6 {[%clk 0:01:05]} 21. Qc2 {[%clk 0:02:40]}  c5 {[%clk 0:01:02]} 22. Bf5 {[%clk 0:02:39]}  Bxf5 {[%clk 0:00:57]} 23. Qxf5 {[%clk 0:02:38]}  c4 {[%clk 0:00:57]} 24. a3 {[%clk 0:02:35]}  b5 {[%clk 0:00:57]} 25. Rfe1 {[%clk 0:02:35]}  a5 {[%clk 0:00:55]} 26. e4 {[%clk 0:02:35]}  b4 {[%clk 0:00:45]} 27. axb4 {[%clk 0:02:36]}  Bxb4 {[%clk 0:00:26]} 28. exd5 {[%clk 0:02:30]}  Kf8 {[%clk 0:00:15]} 29. h3 {[%clk 0:02:30]}  Qd7 {[%clk 0:00:08]} 30. Qc2 {[%clk 0:02:22]}  Rc8 {[%clk 0:00:08]} 31. Re2 {[%clk 0:02:19]}  g6 {[%clk 0:00:08]} 32. Qa4 {[%clk 0:01:57]}  Qxa4 {[%clk 0:00:04]} 33. Nxa4 {[%clk 0:01:58]}  Nxd5 {[%clk 0:00:04]} 34. Rec2 {[%clk 0:01:59]}  Nf4 {[%clk 0:00:02]} 35. Rxc4 {[%clk 0:01:55]}  Re8 {[%clk 0:00:02]} 36. Kf1 {[%clk 0:01:47]}  Nd3 {[%clk 0:00:01]} 37. Rd1 {[%clk 0:01:46]} 1-0


[Site "https://www.chess.com"]

[Event "Titled Tuesday Blitz March 07 Early 2023"]
[White "Tsydypov, Zhamsaran"]
[Black "Madaminov, Mukhiddin"]
[WhiteFideId "4108566"]
[BlackFideId "14210703"]
[WhiteElo "2584"]
[BlackElo "2511"]
[Result "1-0"]
[Round "06"]
[TimeControl "180+2"]
[Date "2023.03.07"]
[WhiteClock "0:01:03"]
[BlackClock "0:00:04"]

1. Nf3 {[%clk 0:03:00]}  Nf6 {[%clk 0:02:57]} 2. c4 {[%clk 0:03:01]}  g6 {[%clk 0:02:57]} 3. g3 {[%clk 0:03:01]}  Bg7 {[%clk 0:02:56]} 4. Bg2 {[%clk 0:03:01]}  O-O {[%clk 0:02:56]} 5. O-O {[%clk 0:03:01]}  d5 {[%clk 0:02:57]} 6. cxd5 {[%clk 0:03:01]}  Nxd5 {[%clk 0:02:58]} 7. d4 {[%clk 0:03:02]}  Nb6 {[%clk 0:02:58]} 8. Nc3 {[%clk 0:03:02]}  Nc6 {[%clk 0:02:58]} 9. e3 {[%clk 0:03:02]}  e5 {[%clk 0:02:58]} 10. d5 {[%clk 0:03:00]}  Na5 {[%clk 0:02:58]} 11. e4 {[%clk 0:03:01]}  c6 {[%clk 0:02:59]} 12. Bg5 {[%clk 0:02:58]}  f6 {[%clk 0:02:59]} 13. Be3 {[%clk 0:02:58]}  cxd5 {[%clk 0:02:59]} 14. exd5 {[%clk 0:02:58]}  Nac4 {[%clk 0:02:55]} 15. Bc5 {[%clk 0:02:58]}  Rf7 {[%clk 0:02:56]} 16. b3 {[%clk 0:02:54]}  Rc7 {[%clk 0:02:55]} 17. b4 {[%clk 0:02:43]}  Bf8 {[%clk 0:02:12]} 18. Nb5 {[%clk 0:02:41]}  Rd7 {[%clk 0:01:54]} 19. Qb3 {[%clk 0:02:38]}  Rxd5 {[%clk 0:01:31]} 20. Nc3 {[%clk 0:02:38]}  Be6 {[%clk 0:00:31]} 21. Nxd5 {[%clk 0:02:36]}  Bxc5 {[%clk 0:00:31]} 22. bxc5 {[%clk 0:02:13]}  Bxd5 {[%clk 0:00:18]} 23. cxb6 {[%clk 0:02:13]}  Nd2 {[%clk 0:00:18]} 24. Qd1 {[%clk 0:01:46]}  Nxf1 {[%clk 0:00:16]} 25. bxa7 {[%clk 0:01:35]}  Nxg3 {[%clk 0:00:13]} 26. hxg3 {[%clk 0:01:34]}  Qa5 {[%clk 0:00:14]} 27. Rc1 {[%clk 0:01:07]}  Rxa7 {[%clk 0:00:14]} 28. Nxe5 {[%clk 0:01:06]}  Bxg2 {[%clk 0:00:14]} 29. Rc8+ {[%clk 0:01:05]}  Kg7 {[%clk 0:00:10]} 30. Qd7+ {[%clk 0:01:05]}  Kh6 {[%clk 0:00:10]} 31. Nf7+ {[%clk 0:01:04]}  Kh5 {[%clk 0:00:11]} 32. Kxg2 {[%clk 0:01:04]}  b6 {[%clk 0:00:04]} 33. Qh3# {[%clk 0:01:03]} 1-0


[Site "https://www.chess.com"]

[Event "Titled Tuesday Blitz March 07 Early 2023"]
[White "Pranav, V"]
[Black "Santos Ruiz, Miguel"]
[WhiteFideId "25060783"]
[BlackFideId "22291482"]
[WhiteElo "2500"]
[BlackElo "2504"]
[Result "1-0"]
[Round "06"]
[TimeControl "180+2"]
[Date "2023.03.07"]
[WhiteClock "0:00:10"]
[BlackClock "0:00:10"]

1. e4 {[%clk 0:02:59]}  e5 {[%clk 0:02:59]} 2. Nf3 {[%clk 0:02:59]}  Nc6 {[%clk 0:02:59]} 3. Bb5 {[%clk 0:02:59]}  Nf6 {[%clk 0:02:59]} 4. d3 {[%clk 0:02:59]}  Bc5 {[%clk 0:02:59]} 5. O-O {[%clk 0:02:58]}  Nd4 {[%clk 0:02:57]} 6. Nxd4 {[%clk 0:02:56]}  Bxd4 {[%clk 0:02:58]} 7. Nd2 {[%clk 0:02:57]}  c6 {[%clk 0:02:55]} 8. Ba4 {[%clk 0:02:56]}  d6 {[%clk 0:02:55]} 9. h3 {[%clk 0:02:48]}  h6 {[%clk 0:02:46]} 10. Nf3 {[%clk 0:02:46]}  Bb6 {[%clk 0:02:46]} 11. c3 {[%clk 0:02:46]}  O-O {[%clk 0:02:43]} 12. Re1 {[%clk 0:02:46]}  Re8 {[%clk 0:02:41]} 13. Bc2 {[%clk 0:02:43]}  d5 {[%clk 0:02:00]} 14. Qe2 {[%clk 0:02:42]}  dxe4 {[%clk 0:01:53]} 15. dxe4 {[%clk 0:02:43]}  Nh5 {[%clk 0:01:48]} 16. Kh2 {[%clk 0:02:31]}  Qf6 {[%clk 0:01:41]} 17. g3 {[%clk 0:02:17]}  Qe6 {[%clk 0:01:24]} 18. Ng1 {[%clk 0:02:11]}  Qg6 {[%clk 0:01:21]} 19. Bb3 {[%clk 0:02:00]}  Nf6 {[%clk 0:01:13]} 20. Kg2 {[%clk 0:01:58]}  Nd7 {[%clk 0:00:45]} 21. Be3 {[%clk 0:01:27]}  Nc5 {[%clk 0:00:41]} 22. Bxc5 {[%clk 0:01:26]}  Bxc5 {[%clk 0:00:40]} 23. Nf3 {[%clk 0:01:27]}  Qf6 {[%clk 0:00:40]} 24. Nh2 {[%clk 0:01:24]}  h5 {[%clk 0:00:37]} 25. Rad1 {[%clk 0:01:11]}  g6 {[%clk 0:00:37]} 26. Nf3 {[%clk 0:01:05]}  Kg7 {[%clk 0:00:33]} 27. Rd3 {[%clk 0:01:01]}  a5 {[%clk 0:00:32]} 28. Nh4 {[%clk 0:00:51]}  a4 {[%clk 0:00:30]} 29. Rf3 {[%clk 0:00:46]}  Qxf3+ {[%clk 0:00:19]} 30. Nxf3 {[%clk 0:00:43]}  axb3 {[%clk 0:00:20]} 31. axb3 {[%clk 0:00:44]}  Be6 {[%clk 0:00:20]} 32. b4 {[%clk 0:00:43]}  Bd6 {[%clk 0:00:19]} 33. Rd1 {[%clk 0:00:43]}  Bc7 {[%clk 0:00:20]} 34. Ng5 {[%clk 0:00:44]}  Bc8 {[%clk 0:00:20]} 35. Qc4 {[%clk 0:00:41]}  Re7 {[%clk 0:00:20]} 36. b5 {[%clk 0:00:40]}  f6 {[%clk 0:00:19]} 37. Nf3 {[%clk 0:00:18]}  cxb5 {[%clk 0:00:19]} 38. Qxb5 {[%clk 0:00:16]}  Ra6 {[%clk 0:00:19]} 39. b4 {[%clk 0:00:14]}  Rc6 {[%clk 0:00:17]} 40. c4 {[%clk 0:00:14]}  Rf7 {[%clk 0:00:12]} 41. c5 {[%clk 0:00:14]}  f5 {[%clk 0:00:12]} 42. Ng5 {[%clk 0:00:14]}  Re7 {[%clk 0:00:11]} 43. h4 {[%clk 0:00:13]}  Rf6 {[%clk 0:00:11]} 44. Rd2 {[%clk 0:00:11]}  Bd7 {[%clk 0:00:10]} 45. Rxd7 {[%clk 0:00:10]} 1-0


[Site "https://www.chess.com"]